lending/lending_fUSD_20241229
["ID","MTS","AMOUNT","RATE_DAILY","PERIOD"]
[347113413,1735503052779,-500.0,0.00016829,2]
[347113414,1735503052788,-500.0,0.00016829,2]
[347113415,1735503052797,-500.0,0.00016829,2]
[347113416,1735503052807,-500.0,0.00016829,2]
[347113417,1735503052816,-500.0,0.00016829,2]
[347113418,1735503052825,-500.0,0.00016829,2]
[347113419,1735503052835,-500.0,0.00016829,2]
[347113420,1735503052843,-500.0,0.00016829,2]
[347113421,1735503052853,-500.0,0.00016829,2]
[347113422,1735503052862,-500.0,0.00016829,2]
[347113423,1735503052871,-500.0,0.00016829,2]
[347113424,1735503052881,-243.41495626,0.00016829,2]
[347113425,1735503052890,-500.0,0.00016829,2]
[347113426,1735503052899,-500.0,0.00016829,2]
[347113427,1735503052909,-500.0,0.00016829,2]
[347113428,1735503052918,-464.91486219,0.00016829,2]
[347113429,1735503052928,-500.0,0.00016829,2]
[347113430,1735503052937,-500.0,0.00016829,2]
[347113431,1735503052946,-500.0,0.00016829,2]
[347113432,1735503052957,-500.0,0.00016829,2]
[347113433,1735503052966,-500.0,0.00016829,2]
[347113434,1735503052975,-500.0,0.00016829,2]
[347113435,1735503052985,-500.0,0.00016829,2]
[347113436,1735503052995,-500.0,0.00016829,2]
[347113437,1735503053004,-500.0,0.00016829,2]
[347113438,1735503053013,-500.0,0.00016829,2]
[347113439,1735503053023,-500.0,0.00016829,2]
[347113440,1735503053032,-500.0,0.00016829,2]
[347113441,1735503053041,-609.65,0.00016829,2]
[347113442,1735503053050,-500.0,0.00016829,2]
[347113443,1735503053059,-500.0,0.00016829,2]
[347113444,1735503053068,-500.0,0.00016829,2]
[347113445,1735503053078,-500.0,0.00016829,2]
[347113446,1735503053087,-500.0,0.00016829,2]
[347113447,1735503053097,-500.0,0.00016829,2]
[347113448,1735503053106,-500.0,0.00016829,2]
[347113449,1735503053115,-500.0,0.00016829,2]
[347113450,1735503053124,-500.0,0.00016829,2]
[347113451,1735503053133,-844.57,0.00016829,2]
[347113452,1735503053142,-500.0,0.00016829,2]
[347113453,1735503053151,-500.0,0.00016829,2]
[347113454,1735503053160,-500.0,0.00016829,2]
[347113455,1735503053170,-500.0,0.00016829,2]
[347113456,1735503053184,-500.0,0.00016829,2]
[347113457,1735503053194,-500.0,0.00016829,2]
[347113458,1735503053203,-500.0,0.00016829,2]
[347113459,1735503053213,-500.0,0.00016829,2]
[347113460,1735503053223,-1819.23,0.00016829,2]
[347113461,1735503053232,-500.0,0.00016829,2]
[347113462,1735503053241,-500.0,0.00016829,2]
[347113463,1735503053251,-1000.4,0.00016829,2]
[347113464,1735503053261,-500.0,0.00016829,2]
[347113465,1735503053270,-500.0,0.00016829,2]
[347113466,1735503053280,-500.0,0.00016829,2]
[347113467,1735503053290,-500.0,0.00016829,2]
[347113468,1735503053299,-500.0,0.00016829,2]
[347113469,1735503053308,-500.0,0.00016829,2]
[347113470,1735503053318,-645.64,0.00016829,2]
[347113471,1735503053327,-394.46,0.00016829,2]
[347113472,1735503053336,-500.0,0.00016829,2]
[347113473,1735503053346,-500.0,0.00016829,2]
[347113474,1735503053355,-3895.18,0.00016829,2]
[347113475,1735503053365,-477.84,0.00016829,2]
[347113476,1735503053375,-394.52,0.00016829,2]
[347113477,1735503053384,-431.22,0.00016829,2]
[347113478,1735503053394,-414.78,0.00016829,2]
[347113479,1735503053403,-500.0,0.00016829,2]
[347113480,1735503053413,-500.0,0.00016829,2]
[347113481,1735503053422,-152.54,0.00016829,2]
[347113482,1735503053431,-500.0,0.00016829,2]
[347113483,1735503053440,-500.0,0.00016829,2]
[347113484,1735503053449,-500.0,0.00016829,2]
[347113485,1735503053458,-500.0,0.00016829,2]
[347113486,1735503053467,-1046.25,0.00016829,2]
[347113487,1735503053477,-500.0,0.00016829,2]
[347113488,1735503053486,-2932.69,0.00016829,2]
[347113489,1735503053495,-2810.5,0.00016829,2]
[347113490,1735503053504,-501.01,0.00016829,2]
[347113491,1735503053513,-894.47,0.00016829,2]
[347113492,1735503053522,-500.0,0.00016829,2]
[347113493,1735503053531,-673.33,0.00016829,2]
[347113494,1735503053540,-500.0,0.00016829,2]
[347113495,1735503053549,-631.12,0.00016829,2]
[347113496,1735503053559,-152.21,0.00016858,2]
[347113497,1735503053568,-166.58,0.00016895,2]
[347113498,1735503053577,-260.56,0.00016903,2]
[347113499,1735503053586,-7500.0,0.00016905,2]
[347113500,1735503053595,-500.0,0.00016905,2]
[347113501,1735503053605,-845.45,0.00016905,2]
[347113502,1735503053614,-1780.83,0.00016905,2]
[347113503,1735503053623,-1367.7,0.00016905,2]
[347113504,1735503053632,-525.17,0.00016905,2]
[347113505,1735503053641,-843.1,0.00016905,2]
[347113506,1735503053651,-500.0,0.00016905,2]
[347113507,1735503053660,-654.57,0.00016905,2]
[347113508,1735503053669,-1099.79,0.00016905,2]
[347113509,1735503053679,-603.24,0.00016905,2]
[347113510,1735503053688,-608.79,0.00016905,2]
[347113511,1735503053697,-1529.19,0.00016905,2]
[347113512,1735503053707,-500.0,0.00016905,2]
[347113513,1735503053716,-592.68,0.00016905,2]
[347113514,1735503053725,-500.0,0.00016906,2]
[347113515,1735503053734,-773.37,0.00016906,2]
[347113516,1735503053745,-500.0,0.00016906,2]
[347113517,1735503053754,-500.0,0.00016906,2]
[347113518,1735503053763,-860.07,0.00016906,2]
[347113519,1735503053772,-500.0,0.00016906,2]
[347113520,1735503053782,-1000.0,0.00016906,2]
[347113521,1735503053791,-500.0,0.00016906,2]
[347113522,1735503053800,-500.0,0.00016906,2]
[347113523,1735503053949,-848.88,0.00016906,2]
[347113524,1735503053959,-625.9,0.00016906,2]
[347113525,1735503053969,-502.73685333,0.00016908,2]
[347113526,1735503053979,-7500.0,0.00016921,2]
[347113527,1735503053989,-1367.7,0.00016921,2]
[347113528,1735503053998,-150.99,0.00016922,2]
[347113529,1735503054008,-9999.99,0.00016922,2]
[347113530,1735503054017,-299.99,0.00016922,4]
[347113531,1735503054027,-999.99,0.00016922,2]
[347113532,1735503054036,-500.0,0.00016931,2]
[347113533,1735503054046,-414.89,0.00017101,2]
[347113534,1735503054055,-500.0,0.00017101,2]
[347113535,1735503054065,-20000.0,0.00017102,2]
[347113536,1735503054074,-500.0,0.00017102,2]
[347113537,1735503054084,-500.0,0.00017102,2]
[347113538,1735503054093,-500.0,0.00017102,2]
[347113539,1735503054103,-500.0,0.00017102,2]
[347113540,1735503054112,-500.0,0.00017102,2]
[347113541,1735503054121,-500.0,0.00017102,2]
[347113542,1735503054131,-500.0,0.00017102,2]
[347113543,1735503054140,-500.0,0.00017102,2]
[347113544,1735503054150,-500.0,0.00017102,2]
[347113545,1735503054159,-500.0,0.00017102,2]
[347113546,1735503054169,-500.0,0.00017102,2]
[347113547,1735503054181,-500.0,0.00017102,2]
[347113548,1735503054191,-500.0,0.00017102,2]
[347113549,1735503054201,-500.0,0.00017102,2]
[347113550,1735503054210,-517.28,0.00017102,2]
[347113551,1735503054221,-500.0,0.00017102,2]
[347113552,1735503054230,-500.0,0.00017102,2]
[347113553,1735503054239,-500.0,0.00017102,2]
[347113554,1735503054249,-640.3,0.00017102,2]
[347113555,1735503054258,-500.0,0.00017102,2]
[347113556,1735503054268,-500.0,0.00017102,2]
[347113557,1735503054277,-500.0,0.00017102,2]
[347113558,1735503054287,-634.04,0.00017102,2]
[347113559,1735503054296,-500.0,0.00017102,2]
[347113560,1735503054306,-475.08,0.00017102,2]
[347113561,1735503054315,-500.0,0.00017102,2]
[347113562,1735503054325,-500.0,0.00017102,2]
[347113563,1735503054334,-500.0,0.00017102,2]
[347113564,1735503054344,-500.0,0.00017102,2]
[347113565,1735503054355,-500.0,0.00017102,2]
[347113566,1735503054365,-500.0,0.00017102,2]
[347113567,1735503054374,-500.0,0.00017102,2]
[347113568,1735503054384,-500.0,0.00017102,2]
[347113569,1735503054393,-578.48,0.00017102,2]
[347113570,1735503054402,-500.0,0.00017102,2]
[347113571,1735503054412,-500.0,0.00017102,2]
[347113572,1735503054422,-500.0,0.00017102,2]
[347113573,1735503054431,-500.0,0.00017102,2]
[347113574,1735503054441,-545.55,0.00017102,2]
[347113575,1735503054450,-500.0,0.00017102,2]
[347113576,1735503054460,-500.0,0.00017102,2]
[347113577,1735503054469,-500.0,0.00017102,2]
[347113578,1735503054479,-500.0,0.00017102,2]
[347113579,1735503054489,-276.27632754,0.00017102,2]
[347113580,1735503054499,-500.0,0.00017102,2]
[347113581,1735503054508,-500.0,0.00017102,2]
[347113582,1735503054518,-500.0,0.00017102,2]
[347113583,1735503054527,-500.0,0.00017102,2]
[347113584,1735503054536,-500.0,0.00017102,2]
[347113585,1735503054545,-500.0,0.00017102,2]
[347113586,1735503054555,-500.0,0.00017102,2]
[347113587,1735503054564,-500.0,0.00017102,2]
[347113588,1735503054573,-500.0,0.00017102,2]
[347113589,1735503054582,-500.0,0.00017102,2]
[347113590,1735503054591,-157.69,0.00017102,2]
[347113591,1735503054600,-500.0,0.00017102,2]
[347113592,1735503054610,-500.0,0.00017102,2]
[347113593,1735503054620,-500.0,0.00017102,2]
[347113594,1735503054629,-500.0,0.00017102,2]
[347113595,1735503054638,-500.0,0.00017102,2]
[347113596,1735503054648,-500.0,0.00017102,2]
[347113597,1735503054658,-500.0,0.00017102,2]
[347113598,1735503054667,-500.0,0.00017102,2]
[347113599,1735503054677,-500.0,0.00017102,2]
[347113600,1735503054686,-500.0,0.00017102,2]
[347113601,1735503054696,-500.0,0.00017102,2]
[347113602,1735503054707,-500.0,0.00017102,2]
[347113603,1735503054717,-302.07,0.00017102,2]
[347113604,1735503054727,-500.0,0.00017102,2]
[347113605,1735503054737,-500.0,0.00017102,2]
[347113606,1735503054746,-500.0,0.00017102,2]
[347113607,1735503054756,-476.46,0.00017102,2]
[347113608,1735503054766,-500.0,0.00017102,2]
[347113609,1735503054775,-500.0,0.00017102,2]
[347113610,1735503054785,-500.0,0.00017102,2]
[347113611,1735503054794,-500.0,0.00017102,2]
[347113612,1735503054804,-500.0,0.00017102,2]
[347113613,1735503054813,-500.0,0.00017102,2]
[347113614,1735503054824,-500.0,0.00017102,2]
[347113615,1735503054833,-546.86,0.00017102,2]
[347113616,1735503054842,-500.0,0.00017102,2]
[347113617,1735503054852,-500.0,0.00017102,2]
[347113618,1735503054862,-421.68,0.00017102,2]
[347113619,1735503054872,-500.0,0.00017102,2]
[347113620,1735503054883,-458.44,0.00017102,2]
[347113621,1735503054892,-500.0,0.00017102,2]
[347113622,1735503054901,-500.0,0.00017102,2]
[347113623,1735503054911,-500.0,0.00017102,2]
[347113624,1735503054921,-500.0,0.00017102,2]
[347113625,1735503054930,-500.0,0.00017102,2]
[347113626,1735503054939,-500.0,0.00017102,2]
[347113627,1735503054948,-517.22,0.00017102,2]
[347113628,1735503054958,-500.0,0.00017102,2]
[347113629,1735503054968,-500.0,0.00017102,2]
[347113630,1735503054977,-581.6,0.00017102,2]
[347113631,1735503054987,-500.0,0.00017102,2]
[347113632,1735503054997,-500.0,0.00017102,2]
[347113633,1735503055007,-206.56,0.00017102,2]
[347113634,1735503055016,-500.0,0.00017102,2]
[347113635,1735503055026,-314.21,0.00017102,2]
[347113636,1735503055035,-223.4,0.00017102,2]
[347113637,1735503055045,-500.0,0.00017102,2]
[347113638,1735503055054,-500.0,0.00017102,2]
[347113639,1735503055064,-500.0,0.00017102,2]
[347113640,1735503055074,-500.0,0.00017102,2]
[347113641,1735503055083,-500.0,0.00017102,2]
[347113642,1735503055092,-500.0,0.00017102,2]
[347113643,1735503055102,-189.22,0.00017102,2]
[347113644,1735503055111,-578.42,0.00017102,2]
[347113645,1735503055120,-500.0,0.00017102,2]
[347113646,1735503055129,-500.0,0.00017102,2]
[347113647,1735503055139,-500.0,0.00017102,2]
[347113648,1735503055148,-409.43,0.00017102,2]
[347113649,1735503055158,-500.0,0.00017102,2]
[347113650,1735503055167,-500.0,0.00017102,2]
[347113651,1735503055180,-500.0,0.00017102,2]
[347113652,1735503055189,-500.0,0.00017102,2]
[347113653,1735503055198,-500.0,0.00017102,2]
[347113654,1735503055208,-500.0,0.00017102,2]
[347113655,1735503055218,-500.0,0.00017102,2]
[347113656,1735503055228,-500.0,0.00017102,2]
[347113657,1735503055237,-500.0,0.00017102,2]
[347113658,1735503055247,-500.0,0.00017102,2]
[347113659,1735503055257,-500.0,0.00017102,2]
[347113660,1735503055266,-229.82,0.00017102,2]
[347113661,1735503055275,-500.0,0.00017102,2]
[347113662,1735503055284,-500.0,0.00017102,2]
[347113663,1735503055294,-639.24,0.00017102,2]
[347113664,1735503055303,-500.0,0.00017102,2]
[347113665,1735503055312,-500.0,0.00017102,2]
[347113666,1735503055322,-500.0,0.00017102,2]
[347113667,1735503055331,-500.0,0.00017102,2]
[347113668,1735503055340,-500.0,0.00017102,2]
[347113669,1735503055349,-500.0,0.00017102,2]
[347113670,1735503055358,-500.0,0.00017102,2]
[347113671,1735503055367,-500.0,0.00017102,2]
[347113672,1735503055377,-500.0,0.00017102,2]
[347113673,1735503055386,-263.35,0.00017102,2]
[347113674,1735503055395,-500.0,0.00017102,2]
[347113675,1735503055404,-500.0,0.00017102,2]
[347113676,1735503055413,-500.0,0.00017102,2]
[347113677,1735503055423,-500.0,0.00017102,2]
[347113678,1735503055432,-500.0,0.00017102,2]
[347113679,1735503055441,-500.0,0.00017102,2]
[347113680,1735503055450,-205.17,0.00017102,2]
[347113681,1735503055459,-500.0,0.00017102,2]
[347113682,1735503055468,-176.19614856,0.00017102,2]
[347113683,1735503055477,-500.0,0.00017102,2]
[347113684,1735503055487,-500.0,0.00017102,2]
[347113685,1735503055496,-500.0,0.00017102,2]
[347113686,1735503055506,-500.0,0.00017102,2]
[347113687,1735503055515,-510.51680094,0.00017102,2]
[347113688,1735503055524,-500.0,0.00017102,2]
[347113689,1735503055533,-352.49,0.00017102,2]
[347113690,1735503055543,-500.0,0.00017102,2]
[347113691,1735503055552,-500.0,0.00017102,2]
[347113692,1735503055561,-500.0,0.00017102,2]
[347113693,1735503055570,-500.0,0.00017102,2]
[347113694,1735503055579,-500.0,0.00017102,2]
[347113695,1735503055588,-500.0,0.00017102,2]
[347113696,1735503055597,-614.19,0.00017102,2]
[347113697,1735503055606,-500.0,0.00017102,2]
[347113698,1735503055615,-667.24,0.00017102,2]
[347113699,1735503055624,-500.0,0.00017102,2]
[347113700,1735503055633,-500.0,0.00017102,2]
[347113701,1735503055643,-500.0,0.00017102,2]
[347113702,1735503055652,-500.0,0.00017102,2]
[347113703,1735503055661,-500.0,0.00017102,2]
[347113704,1735503055670,-500.0,0.00017102,2]
[347113705,1735503055678,-500.0,0.00017102,2]
[347113706,1735503055687,-1151.13,0.00017102,2]
[347113707,1735503055696,-500.0,0.00017102,2]
[347113708,1735503055706,-500.0,0.00017102,2]
[347113709,1735503055715,-514.4,0.00017102,2]
[347113710,1735503055724,-500.0,0.00017102,2]
[347113711,1735503055733,-500.0,0.00017102,2]
[347113712,1735503055744,-500.0,0.00017102,2]
[347113713,1735503055754,-500.0,0.00017102,2]
[347113714,1735503055764,-500.0,0.00017102,2]
[347113715,1735503055773,-500.0,0.00017102,2]
[347113716,1735503055783,-500.0,0.00017102,2]
[347113717,1735503055793,-496.78,0.00017102,2]
[347113718,1735503055802,-500.0,0.00017102,2]
[347113719,1735503055812,-500.23,0.00017102,2]
[347113720,1735503055821,-500.0,0.00017102,2]
[347113721,1735503055830,-288.54,0.00017102,2]
[347113722,1735503055840,-500.0,0.00017102,2]
[347113723,1735503055849,-259.71217331,0.00017102,2]
[347113724,1735503055859,-500.0,0.00017102,2]
[347113725,1735503055868,-500.0,0.00017102,2]
[347113726,1735503055877,-615.17,0.00017102,2]
[347113727,1735503055886,-561.57662966,0.00017102,2]
[347113728,1735503055896,-254.83,0.00017102,2]
[347113729,1735503055905,-211.88,0.00017102,2]
[347113730,1735503055915,-500.0,0.00017102,2]
[347113731,1735503055924,-500.0,0.00017102,2]
[347113732,1735503055934,-1940.6,0.00017102,2]
[347113733,1735503055944,-500.0,0.00017102,2]
[347113734,1735503055953,-500.0,0.00017102,2]
[347113735,1735503055963,-500.0,0.00017102,2]
[347113736,1735503055972,-500.0,0.00017102,2]
[347113737,1735503055981,-500.0,0.00017102,2]
[347113738,1735503055991,-500.0,0.00017102,2]
[347113739,1735503056000,-500.0,0.00017102,2]
[347113740,1735503056010,-500.0,0.00017102,2]
[347113741,1735503056019,-500.0,0.00017102,2]
[347113742,1735503056029,-500.0,0.00017102,2]
[347113743,1735503056039,-500.0,0.00017102,2]
[347113744,1735503056048,-500.0,0.00017102,2]
[347113745,1735503056057,-500.0,0.00017102,2]
[347113746,1735503056067,-500.0,0.00017102,2]
[347113747,1735503056076,-193.38340766,0.00017102,2]
[347113748,1735503056086,-500.0,0.00017102,2]
[347113749,1735503056096,-500.0,0.00017102,2]
[347113750,1735503056105,-500.0,0.00017102,2]
[347113751,1735503056114,-500.0,0.00017102,2]
[347113752,1735503056123,-500.0,0.00017102,2]
[347113753,1735503056133,-629.96,0.00017102,2]
[347113754,1735503056143,-500.0,0.00017102,2]
[347113755,1735503056154,-500.0,0.00017102,2]
[347113756,1735503056163,-500.0,0.00017102,2]
[347113757,1735503056175,-500.0,0.00017102,2]
[347113758,1735503056184,-500.0,0.00017102,2]
[347113759,1735503056195,-500.0,0.00017102,2]
[347113760,1735503056204,-500.0,0.00017102,2]
[347113761,1735503056214,-500.0,0.00017102,2]
[347113762,1735503056223,-464.83,0.00017102,2]
[347113763,1735503056232,-500.0,0.00017102,2]
[347113764,1735503056242,-500.0,0.00017102,2]
[347113765,1735503056253,-1169.28,0.00017102,2]
[347113766,1735503056262,-500.0,0.00017102,2]
[347113767,1735503056272,-500.0,0.00017102,2]
[347113768,1735503056281,-500.0,0.00017102,2]
[347113769,1735503056290,-500.0,0.00017102,2]
[347113770,1735503056299,-500.0,0.00017102,2]
[347113771,1735503056309,-500.0,0.00017102,2]
[347113772,1735503056319,-942.62,0.00017102,2]
[347113773,1735503056328,-500.0,0.00017102,2]
[347113774,1735503056337,-500.0,0.00017102,2]
[347113775,1735503056346,-500.0,0.00017102,2]
[347113776,1735503056356,-370.13,0.00017102,2]
[347113777,1735503056365,-500.0,0.00017102,2]
[347113778,1735503056375,-500.0,0.00017102,2]
[347113779,1735503056385,-888.62,0.00017102,2]
[347113780,1735503056395,-500.0,0.00017102,2]
[347113781,1735503056404,-500.0,0.00017102,2]
[347113782,1735503056414,-577.4,0.00017102,2]
[347113783,1735503056424,-500.0,0.00017102,2]
[347113784,1735503056433,-500.0,0.00017102,2]
[347113785,1735503056442,-500.0,0.00017102,2]
[347113786,1735503056451,-500.0,0.00017102,2]
[347113787,1735503056459,-500.0,0.00017102,2]
[347113788,1735503056469,-500.0,0.00017102,2]
[347113789,1735503056479,-5874.67,0.00017102,2]
[347113790,1735503056489,-500.0,0.00017102,2]
[347113791,1735503056498,-500.0,0.00017102,2]
[347113792,1735503056507,-500.0,0.00017102,2]
[347113793,1735503056517,-682.73,0.00017102,2]
[347113794,1735503056526,-220.59,0.00017103,2]
[347113795,1735503056536,-500.0,0.00017103,2]
[347113796,1735503056546,-500.0,0.00017103,2]
[347113797,1735503056555,-500.0,0.00017103,2]
[347113798,1735503056564,-1960.19,0.00017103,2]
[347113799,1735503056573,-500.0,0.00017103,2]
[347113800,1735503056582,-500.0,0.00017103,2]
[347113801,1735503056592,-1628.51,0.00017103,2]
[347113802,1735503056600,-500.0,0.00017103,2]
[347113803,1735503056610,-500.0,0.00017103,2]
[347113804,1735503056619,-500.0,0.00017103,2]
[347113805,1735503056628,-500.0,0.00017103,2]
[347113806,1735503056638,-500.0,0.00017103,2]
[347113807,1735503056647,-500.0,0.00017103,2]
[347113808,1735503056656,-500.0,0.00017103,2]
[347113809,1735503056665,-500.0,0.00017103,2]
[347113810,1735503056674,-500.0,0.00017103,2]
[347113811,1735503056684,-500.0,0.00017103,2]
[347113812,1735503056694,-500.0,0.00017103,2]
[347113813,1735503056703,-500.0,0.00017103,2]
[347113814,1735503056712,-500.0,0.00017103,2]
[347113815,1735503056721,-500.0,0.00017103,2]
[347113816,1735503056730,-500.0,0.00017103,2]
[347113817,1735503056740,-580.34,0.00017103,2]
[347113818,1735503056749,-500.0,0.00017103,2]
[347113819,1735503056758,-500.0,0.00017103,2]
[347113820,1735503056767,-500.0,0.00017103,2]
[347113821,1735503056776,-500.0,0.00017103,2]
[347113822,1735503056785,-500.0,0.00017103,2]
[347113823,1735503056794,-500.0,0.00017103,2]
[347113824,1735503056803,-500.0,0.00017103,2]
[347113825,1735503056813,-500.0,0.00017103,2]
[347113826,1735503056822,-500.0,0.00017103,2]
[347113827,1735503056831,-609.65,0.00017103,2]
[347113828,1735503056840,-500.0,0.00017103,2]
[347113829,1735503056849,-500.0,0.00017103,2]
[347113830,1735503056858,-500.0,0.00017103,2]
[347113831,1735503056867,-500.0,0.00017103,2]
[347113832,1735503056876,-500.0,0.00017103,2]
[347113833,1735503056885,-500.0,0.00017103,2]
[347113834,1735503056894,-500.0,0.00017103,2]
[347113835,1735503056903,-500.0,0.00017103,2]
[347113836,1735503056912,-485.28,0.00017103,2]
[347113837,1735503056921,-844.57,0.00017103,2]
[347113838,1735503056931,-589.26,0.00017103,2]
[347113839,1735503056940,-500.0,0.00017103,2]
[347113840,1735503056949,-500.0,0.00017103,2]
[347113841,1735503056958,-500.0,0.00017103,2]
[347113842,1735503056967,-500.0,0.00017103,2]
[347113843,1735503056976,-500.0,0.00017103,2]
[347113844,1735503056987,-1819.23,0.00017103,2]
[347113845,1735503056996,-500.0,0.00017103,2]
[347113846,1735503057006,-1000.4,0.00017103,2]
[347113847,1735503057015,-431.74,0.00017103,2]
[347113848,1735503057025,-500.0,0.00017103,2]
[347113849,1735503057034,-500.0,0.00017103,2]
[347113850,1735503057043,-500.0,0.00017103,2]
[347113851,1735503057053,-500.0,0.00017103,2]
[347113852,1735503057062,-425.4,0.00017103,2]
[347113853,1735503057071,-3895.18,0.00017103,2]
[347113854,1735503057218,-500.0,0.00017103,2]
[347113855,1735503057228,-500.0,0.00017103,2]
[347113856,1735503057237,-500.0,0.00017103,2]
[347113857,1735503057247,-500.0,0.00017103,2]
[347113858,1735503057257,-500.0,0.00017103,2]
[347113859,1735503057266,-500.0,0.00017103,2]
[347113860,1735503057275,-1046.25,0.00017103,2]
[347113861,1735503057284,-500.0,0.00017103,2]
[347113862,1735503057293,-2932.69,0.00017103,2]
[347113863,1735503057302,-2810.5,0.00017103,2]
[347113864,1735503057311,-501.01,0.00017103,2]
[347113865,1735503057320,-894.47,0.00017103,2]
[347113866,1735503057329,-500.0,0.00017103,2]
[347113867,1735503057339,-673.33,0.00017103,2]
[347113868,1735503057348,-500.0,0.00017103,2]
[347113869,1735503057357,-631.12,0.00017103,2]
[347113870,1735503057366,-500.0,0.00017179,2]
[347113871,1735503057375,-845.45,0.00017179,2]
[347113872,1735503057385,-1780.83,0.00017179,2]
[347113873,1735503057394,-525.17,0.00017179,2]
[347113874,1735503057403,-843.1,0.00017179,2]
[347113875,1735503057411,-500.0,0.00017179,2]
[347113876,1735503057420,-654.57,0.00017179,2]
[347113877,1735503057429,-1099.79,0.00017179,2]
[347113878,1735503057439,-603.24,0.00017179,2]
[347113879,1735503057448,-608.79,0.00017179,2]
[347113880,1735503057458,-1529.19,0.00017179,2]
[347113881,1735503057467,-500.0,0.00017179,2]
[347113882,1735503057476,-500.0,0.0001718,2]
[347113883,1735503057485,-773.37,0.0001718,2]
[347113884,1735503057495,-500.0,0.0001718,2]
[347113885,1735503057504,-500.0,0.0001718,2]
[347113886,1735503057513,-860.07,0.0001718,2]
[347113887,1735503057522,-601.92,0.0001718,2]
[347113888,1735503057532,-1000.0,0.0001718,2]
[347113889,1735503057542,-500.0,0.0001718,2]
[347113890,1735503057551,-500.0,0.0001718,2]
[347113891,1735503057563,-848.88,0.0001718,2]
[347113892,1735503057572,-625.9,0.0001718,2]
[347113893,1735503057582,-916.75,0.00017194,2]
[347113894,1735503057591,-168.04950212,0.00017299,2]
[347113895,1735503057600,-337.3,0.00017375,2]
[347113896,1735503057609,-500.0,0.00017376,2]
[347113897,1735503057619,-500.0,0.00017376,2]
[347113898,1735503057629,-500.0,0.00017376,2]
[347113899,1735503057638,-500.0,0.00017376,2]
[347113900,1735503057648,-239.76,0.00017376,2]
[347113901,1735503057657,-500.0,0.00017376,2]
[347113902,1735503057667,-500.0,0.00017376,2]
[347113903,1735503057677,-500.0,0.00017376,2]
[347113904,1735503057687,-638.75,0.00017376,2]
[347113905,1735503057698,-500.0,0.00017376,2]
[347113906,1735503057708,-500.0,0.00017376,2]
[347113907,1735503057717,-401.17,0.00017376,2]
[347113908,1735503057726,-500.0,0.00017376,2]
[347113909,1735503057736,-500.0,0.00017376,2]
[347113910,1735503057745,-500.0,0.00017376,2]
[347113911,1735503057754,-500.0,0.00017376,2]
[347113912,1735503057763,-500.0,0.00017376,2]